[Event "*** Titled Tuesday 3|2 Blitz"]
[Site "Chess.com"]
[Date "2016.08.02"]
[Round "6"]
[White "eltenedor"]
[Black "calemcc"]
[Result "0-1"]
[WhiteElo "2026"]
[BlackElo "2126"]
[TimeControl "180+2"]
[EndTime "12:19:14 PDT"]
[Termination "calemcc won by resignation"]

1. c4 {[%clk 0:01:46.5]} 1... e6 {[%clk 0:02:52.1]} 2. g3 {[%clk 0:01:43.4]}
2... d5 {[%clk 0:02:50.1]} 3. d4 {[%clk 0:01:44.2]} 3... c6 {[%clk 0:02:50.6]}
4. b3 {[%clk 0:01:41.5]} 4... Nf6 {[%clk 0:02:50.2]} 5. Bg2 {[%clk 0:01:41.4]}
5... Nbd7 {[%clk 0:02:44.8]} 6. Nf3 {[%clk 0:01:42]} 6... Bd6 {[%clk 0:02:45.2]}
7. Bb2 {[%clk 0:01:42.1]} 7... O-O {[%clk 0:02:45.9]} 8. O-O {[%clk 0:01:41.8]}
8... b6 {[%clk 0:02:45.5]} 9. Nbd2 {[%clk 0:01:31.6]} 9... Bb7 {[%clk 0:02:39]}
10. Qc2 {[%clk 0:01:31.3]} 10... c5 {[%clk 0:02:39.5]} 11. cxd5 {[%clk
0:01:25.6]} 11... Nxd5 {[%clk 0:02:36.1]} 12. a3 {[%clk 0:01:06.5]} 12... Rc8
{[%clk 0:02:34.4]} 13. Qd3 {[%clk 0:00:58.4]} 13... cxd4 {[%clk 0:02:34.6]} 14.
Nxd4 {[%clk 0:00:54]} 14... Nc5 {[%clk 0:02:34.3]} 15. Qb1 {[%clk 0:00:48.4]}
15... Qc7 {[%clk 0:02:16]} 16. Rc1 {[%clk 0:00:44.3]} 16... Qb8 {[%clk
0:02:13.5]} 17. Nc4 {[%clk 0:00:44.3]} 17... Be7 {[%clk 0:02:12.4]} 18. Qa2
{[%clk 0:00:38.4]} 18... Bf6 {[%clk 0:02:11.9]} 19. e4 {[%clk 0:00:32.3]} 19...
Ne7 {[%clk 0:02:01.6]} 20. e5 {[%clk 0:00:26.6]} 20... Bxe5 {[%clk 0:02:00.4]}
21. Nxe5 {[%clk 0:00:26.1]} 21... Bxg2 {[%clk 0:01:53.5]} 22. Kxg2 {[%clk
0:00:22.2]} 22... Qxe5 {[%clk 0:01:53.4]} 23. Nf3 {[%clk 0:00:19.1]} 23... Qe4
{[%clk 0:01:51]} 24. Rc4 {[%clk 0:00:17.9]} 24... Qb7 {[%clk 0:01:50]} 25. Rg4
{[%clk 0:00:16.9]} 25... Nf5 {[%clk 0:01:46]} 26. b4 {[%clk 0:00:13.5]} 26...
Nd3 {[%clk 0:01:44.5]} 27. Be5 {[%clk 0:00:05.6]} 27... Nxe5 {[%clk 0:01:43.7]}
0-1

[Event "*** Titled Tuesday 3|2 Blitz"]
[Site "Chess.com"]
[Date "2016.08.02"]
[Round "6"]
[White "sandropozo"]
[Black "fpawn"]
[Result "1-0"]
[WhiteElo "2371"]
[BlackElo "2220"]
[TimeControl "180+2"]
[EndTime "12:19:23 PDT"]
[Termination "sandropozo won by resignation"]

1. d4 {[%clk 0:03:01.5]} 1... f5 {[%clk 0:03:00.1]} 2. Bf4 {[%clk 0:02:57.2]}
2... Nf6 {[%clk 0:02:58.7]} 3. e3 {[%clk 0:02:56.4]} 3... g6 {[%clk 0:02:59.8]}
4. h4 {[%clk 0:02:55]} 4... Bg7 {[%clk 0:02:59.4]} 5. h5 {[%clk 0:02:38]} 5...
Nxh5 {[%clk 0:02:57.9]} 6. Rxh5 {[%clk 0:02:33.3]} 6... gxh5 {[%clk 0:02:59]} 7.
Qxh5+ {[%clk 0:02:28]} 7... Kf8 {[%clk 0:03:00.9]} 8. Qxf5+ {[%clk 0:02:04]}
8... Kg8 {[%clk 0:03:02]} 9. Nf3 {[%clk 0:01:39.7]} 9... e6 {[%clk 0:03:02.3]}
10. Qh5 {[%clk 0:01:37.5]} 10... d6 {[%clk 0:02:57.7]} 11. Bd3 {[%clk
0:01:35.6]} 11... h6 {[%clk 0:02:34]} 12. Nc3 {[%clk 0:01:27.5]} 12... Nd7
{[%clk 0:02:28.4]} 13. O-O-O {[%clk 0:01:20.3]} 13... Nf6 {[%clk 0:02:29]} 14.
Qh2 {[%clk 0:01:16]} 14... Ng4 {[%clk 0:02:19.9]} 15. Qg3 {[%clk 0:01:13.7]}
15... Nf6 {[%clk 0:01:57.1]} 16. Rh1 {[%clk 0:01:13.4]} 16... Kf8 {[%clk
0:01:54.4]} 17. Nh4 {[%clk 0:01:13.3]} 17... Rg8 {[%clk 0:01:43.4]} 18. Ng6+
{[%clk 0:01:10.7]} 18... Ke8 {[%clk 0:01:44.6]} 19. e4 {[%clk 0:01:03.1]} 19...
Kd7 {[%clk 0:01:39.6]} 20. e5 {[%clk 0:01:00.2]} 20... Ne8 {[%clk 0:01:30.2]}
21. d5 {[%clk 0:00:44.7]} 21... exd5 {[%clk 0:01:13.6]} 22. Nxd5 {[%clk
0:00:36.3]} 22... c5 {[%clk 0:00:57.3]} 23. e6+ {[%clk 0:00:31.2]} 23... Kc6
{[%clk 0:00:54.3]} 24. Nge7+ {[%clk 0:00:29.6]} 1-0

[Event "*** Titled Tuesday 3|2 Blitz"]
[Site "Chess.com"]
[Date "2016.08.02"]
[Round "6"]
[White "Journey_to_GrandMaster_YT"]
[Black "Wolverine_master"]
[Result "1-0"]
[WhiteElo "2426"]
[BlackElo "2008"]
[TimeControl "180+2"]
[EndTime "12:19:50 PDT"]
[Termination "Journey_to_GrandMaster_YT won by resignation"]

1. d4 {[%clk 0:03:01.9]} 1... Nf6 {[%clk 0:03:00.2]} 2. Nf3 {[%clk 0:03:03.1]}
2... e6 {[%clk 0:03:00.5]} 3. e3 {[%clk 0:03:04.5]} 3... Be7 {[%clk 0:02:55.5]}
4. Bd3 {[%clk 0:03:06]} 4... O-O {[%clk 0:02:55.7]} 5. e4 {[%clk 0:03:07.3]}
5... d6 {[%clk 0:02:56.2]} 6. O-O {[%clk 0:03:07.3]} 6... b6 {[%clk 0:02:57.6]}
7. Re1 {[%clk 0:02:59.8]} 7... Bb7 {[%clk 0:02:56]} 8. h3 {[%clk 0:02:59.7]}
8... Nbd7 {[%clk 0:02:56.4]} 9. Bf4 {[%clk 0:02:58.2]} 9... c5 {[%clk 0:02:46]}
10. c3 {[%clk 0:02:58.2]} 10... Rc8 {[%clk 0:02:27.4]} 11. a4 {[%clk 0:02:57.1]}
11... Re8 {[%clk 0:01:48.1]} 12. Na3 {[%clk 0:02:50.1]} 12... Bf8 {[%clk
0:01:45.5]} 13. e5 {[%clk 0:02:43.7]} 13... dxe5 {[%clk 0:01:43.3]} 14. dxe5
{[%clk 0:02:43.9]} 14... Nd5 {[%clk 0:01:43.6]} 15. Bg3 {[%clk 0:02:43.7]} 15...
g6 {[%clk 0:01:43]} 16. Nc4 {[%clk 0:02:43]} 16... Ba6 {[%clk 0:01:35.5]} 17. a5
{[%clk 0:02:42.1]} 17... Bxc4 {[%clk 0:01:36.1]} 18. Bxc4 {[%clk 0:02:42.2]}
18... Nb8 {[%clk 0:01:27.3]} 19. axb6 {[%clk 0:02:38.8]} 19... Qxb6 {[%clk
0:01:24.1]} 20. Bxd5 {[%clk 0:02:31.5]} 20... exd5 {[%clk 0:01:17.6]} 21. Qxd5
{[%clk 0:02:30.9]} 21... Bg7 {[%clk 0:00:47.6]} 22. Ng5 {[%clk 0:02:14.3]} 22...
Rf8 {[%clk 0:00:43.2]} 23. e6 {[%clk 0:02:02.5]} 23... Qc6 {[%clk 0:00:15.5]}
24. exf7+ {[%clk 0:01:59]} 24... Kh8 {[%clk 0:00:16.3]} 25. Qxc6 {[%clk
0:01:55.4]} 25... Nxc6 {[%clk 0:00:18.2]} 26. Bd6 {[%clk 0:01:51.2]} 26... Rfd8
{[%clk 0:00:15.1]} 27. Bxc5 {[%clk 0:01:46.7]} 27... h6 {[%clk 0:00:16.3]} 28.
Ne6 {[%clk 0:01:45.2]} 28... Rd5 {[%clk 0:00:13.4]} 29. f8=Q+ {[%clk 0:01:39.3]}
29... Bxf8 {[%clk 0:00:13.2]} 30. Bxf8 {[%clk 0:01:40.3]} 30... Ne5 {[%clk
0:00:13.9]} 31. Bg7+ {[%clk 0:01:38.9]} 31... Kh7 {[%clk 0:00:14]} 32. Bxe5
{[%clk 0:01:39.7]} 32... Re8 {[%clk 0:00:14.5]} 33. Rxa7+ {[%clk 0:01:36.2]}
33... Kg8 {[%clk 0:00:13.3]} 34. Rg7+ {[%clk 0:01:37]} 1-0

[Event "*** Titled Tuesday 3|2 Blitz"]
[Site "Chess.com"]
[Date "2016.08.02"]
[Round "6"]
[White "VennyIce"]
[Black "SabinoBrunello"]
[Result "1-0"]
[WhiteElo "1974"]
[BlackElo "2550"]
[TimeControl "180+2"]
[EndTime "12:19:52 PDT"]
[Termination "VennyIce won by resignation"]

1. e4 {[%clk 0:03:01.9]} 1... e6 {[%clk 0:02:57.4]} 2. d4 {[%clk 0:03:02.1]}
2... d5 {[%clk 0:02:57.9]} 3. Nc3 {[%clk 0:03:02.3]} 3... Nf6 {[%clk 0:02:56]}
4. Bg5 {[%clk 0:03:00.3]} 4... Bb4 {[%clk 0:02:55.7]} 5. e5 {[%clk 0:02:58]}
5... h6 {[%clk 0:02:56.2]} 6. Bd2 {[%clk 0:02:55.4]} 6... Bxc3 {[%clk
0:02:55.8]} 7. bxc3 {[%clk 0:02:55.4]} 7... Ne4 {[%clk 0:02:55.7]} 8. Bd3 {[%clk
0:02:54.9]} 8... Nxd2 {[%clk 0:02:54.6]} 9. Qxd2 {[%clk 0:02:55.4]} 9... c5
{[%clk 0:02:56]} 10. f4 {[%clk 0:02:52]} 10... Nc6 {[%clk 0:02:55.6]} 11. Nf3
{[%clk 0:02:52]} 11... c4 {[%clk 0:02:53.2]} 12. Be2 {[%clk 0:02:52.3]} 12...
Qe7 {[%clk 0:02:48]} 13. O-O {[%clk 0:02:51.6]} 13... Bd7 {[%clk 0:02:45.3]} 14.
Rfb1 {[%clk 0:02:50.2]} 14... b6 {[%clk 0:02:45.3]} 15. Qc1 {[%clk 0:02:40.2]}
15... Kd8 {[%clk 0:02:45.6]} 16. a4 {[%clk 0:02:39.1]} 16... Kc7 {[%clk
0:02:46.5]} 17. Rb2 {[%clk 0:02:25]} 17... Rag8 {[%clk 0:02:43.7]} 18. Qb1
{[%clk 0:02:03.1]} 18... g5 {[%clk 0:02:43.3]} 19. a5 {[%clk 0:02:02.9]} 19...
Rb8 {[%clk 0:02:21]} 20. axb6+ {[%clk 0:02:01.4]} 20... axb6 {[%clk 0:02:20.7]}
21. Ra6 {[%clk 0:02:02.2]} 21... Rb7 {[%clk 0:01:59.9]} 22. Raxb6 {[%clk
0:02:00.9]} 22... Rxb6 {[%clk 0:01:59.1]} 23. Rxb6 {[%clk 0:02:01.1]} 23... Rb8
{[%clk 0:02:00.8]} 24. Rxb8 {[%clk 0:02:01.2]} 24... Nxb8 {[%clk 0:02:02.7]} 25.
fxg5 {[%clk 0:01:58.8]} 25... hxg5 {[%clk 0:02:03.4]} 26. Qb4 {[%clk 0:01:51.5]}
26... Qxb4 {[%clk 0:01:44.6]} 27. cxb4 {[%clk 0:01:51.6]} 27... Nc6 {[%clk
0:01:46.2]} 28. c3 {[%clk 0:01:49.7]} 28... Na7 {[%clk 0:01:45.4]} 29. Nxg5
{[%clk 0:01:45.3]} 29... Nb5 {[%clk 0:01:46.2]} 30. Nxf7 {[%clk 0:01:41.7]}
30... Nxc3 {[%clk 0:01:47.1]} 31. Bg4 {[%clk 0:01:38.8]} 31... Na2 {[%clk
0:01:44.4]} 32. Kf2 {[%clk 0:01:25.8]} 32... c3 {[%clk 0:01:43.8]} 33. Bd1
{[%clk 0:01:26.6]} 33... Nxb4 {[%clk 0:01:44.2]} 34. h4 {[%clk 0:01:27]} 34...
Be8 {[%clk 0:01:22.3]} 35. Nd6 {[%clk 0:01:27.5]} 35... Kd8 {[%clk 0:01:12.5]}
36. Nxe8 {[%clk 0:01:06.7]} 36... Kxe8 {[%clk 0:01:13.3]} 37. Ba4+ {[%clk
0:01:07.8]} 37... Kf7 {[%clk 0:01:13]} 38. Ke3 {[%clk 0:01:08.7]} 38... Kg7
{[%clk 0:01:11.5]} 39. g4 {[%clk 0:01:09.5]} 39... Kh6 {[%clk 0:01:10.6]} 40.
Bd7 {[%clk 0:01:09.7]} 40... Na2 {[%clk 0:01:04.4]} 41. Kd3 {[%clk 0:01:07.6]}
1-0

[Event "*** Titled Tuesday 3|2 Blitz"]
[Site "Chess.com"]
[Date "2016.08.02"]
[Round "6"]
[White "brauliocuarta"]
[Black "the_drake"]
[Result "1-0"]
[WhiteElo "2060"]
[BlackElo "2093"]
[TimeControl "180+2"]
[EndTime "12:19:53 PDT"]
[Termination "brauliocuarta won by checkmate"]

1. d4 {[%clk 0:03:01.9]} 1... d5 {[%clk 0:03:00.2]} 2. c4 {[%clk 0:03:02.8]}
2... e6 {[%clk 0:02:59.5]} 3. Nc3 {[%clk 0:03:03.4]} 3... Nf6 {[%clk 0:02:58.2]}
4. Nf3 {[%clk 0:03:03.6]} 4... Nbd7 {[%clk 0:02:55.9]} 5. cxd5 {[%clk
0:02:58.5]} 5... exd5 {[%clk 0:02:55.9]} 6. Qb3 {[%clk 0:02:58.8]} 6... c5
{[%clk 0:02:53.5]} 7. Nxd5 {[%clk 0:02:47.9]} 7... Nxd5 {[%clk 0:02:51.4]} 8.
Qxd5 {[%clk 0:02:49.8]} 8... Be7 {[%clk 0:02:46.8]} 9. dxc5 {[%clk 0:02:35.7]}
9... O-O {[%clk 0:02:42.5]} 10. e3 {[%clk 0:02:15.1]} 10... Bxc5 {[%clk
0:02:36.9]} 11. Bd2 {[%clk 0:02:03.9]} 11... Qb6 {[%clk 0:02:36.4]} 12. Bc3
{[%clk 0:01:52.9]} 12... Bb4 {[%clk 0:02:36.4]} 13. Bxb4 {[%clk 0:01:36.1]}
13... Qxb4+ {[%clk 0:02:36.9]} 14. Qd2 {[%clk 0:01:37.9]} 14... Qg4 {[%clk
0:02:34.6]} 15. Be2 {[%clk 0:01:34.2]} 15... Nf6 {[%clk 0:02:35.5]} 16. O-O
{[%clk 0:01:30.9]} 16... Ne4 {[%clk 0:02:34.5]} 17. Qb4 {[%clk 0:01:24.7]} 17...
Nxf2 {[%clk 0:02:31.5]} 18. Nd4 {[%clk 0:00:59.1]} 18... Nh3+ {[%clk 0:02:21.4]}
19. Kh1 {[%clk 0:00:59.4]} 19... Qe4 {[%clk 0:02:22]} 20. Bf3 {[%clk 0:00:56.5]}
20... Qxe3 {[%clk 0:02:22.6]} 21. gxh3 {[%clk 0:00:56.4]} 21... Bxh3 {[%clk
0:02:24.5]} 22. Rg1 {[%clk 0:00:47.2]} 22... a5 {[%clk 0:02:20.4]} 23. Qc3
{[%clk 0:00:44.6]} 23... Qxc3 {[%clk 0:02:19.4]} 24. bxc3 {[%clk 0:00:46.5]}
24... Rac8 {[%clk 0:02:19.9]} 25. Rg3 {[%clk 0:00:43.1]} 25... Bd7 {[%clk
0:02:18.1]} 26. Bxb7 {[%clk 0:00:43.4]} 26... Rc7 {[%clk 0:02:19.1]} 27. Bd5
{[%clk 0:00:42.6]} 27... g6 {[%clk 0:02:16.8]} 28. Rf1 {[%clk 0:00:41.3]} 28...
Kg7 {[%clk 0:02:16.2]} 29. c4 {[%clk 0:00:39.4]} 29... f5 {[%clk 0:02:12.8]} 30.
Be6 {[%clk 0:00:35.8]} 30... Re8 {[%clk 0:02:10.7]} 31. Nxf5+ {[%clk 0:00:33.9]}
31... Kf6 {[%clk 0:02:11.7]} 32. Bxd7 {[%clk 0:00:31.7]} 32... Rxd7 {[%clk
0:02:00.7]} 33. Nd6+ {[%clk 0:00:31.8]} 33... Ke7 {[%clk 0:02:01]} 34. Nxe8
{[%clk 0:00:31.9]} 34... Kxe8 {[%clk 0:02:02.9]} 35. Re3+ {[%clk 0:00:30]} 35...
Kd8 {[%clk 0:02:03]} 36. Rc1 {[%clk 0:00:29.7]} 36... Rd2 {[%clk 0:02:04.3]} 37.
c5 {[%clk 0:00:28.4]} 37... Kc7 {[%clk 0:02:04.5]} 38. c6 {[%clk 0:00:28.2]}
38... Rd8 {[%clk 0:01:57.1]} 39. Re7+ {[%clk 0:00:28.2]} 39... Kc8 {[%clk
0:01:58.3]} 40. c7 {[%clk 0:00:27.8]} 40... Rh8 {[%clk 0:01:59.1]} 41. Rb1
{[%clk 0:00:25.5]} 41... Rd8 {[%clk 0:01:50.7]} 42. Rb8# {[%clk 0:00:25.6]} 1-0

[Event "*** Titled Tuesday 3|2 Blitz"]
[Site "Chess.com"]
[Date "2016.08.02"]
[Round "6"]
[White "MFBerna"]
[Black "AnastasiaProtopopova"]
[Result "0-1"]
[WhiteElo "2144"]
[BlackElo "2048"]
[TimeControl "180+2"]
[EndTime "12:20:18 PDT"]
[Termination "AnastasiaProtopopova won by resignation"]

1. e4 {[%clk 0:03:01.9]} 1... e5 {[%clk 0:02:59.4]} 2. Nf3 {[%clk 0:03:02.5]}
2... Nc6 {[%clk 0:02:59.4]} 3. d4 {[%clk 0:03:03.3]} 3... exd4 {[%clk
0:02:58.5]} 4. Nxd4 {[%clk 0:03:05.2]} 4... Bc5 {[%clk 0:02:58.5]} 5. Be3 {[%clk
0:03:00.5]} 5... Qf6 {[%clk 0:02:58.6]} 6. c3 {[%clk 0:03:01.8]} 6... Nge7
{[%clk 0:02:59.6]} 7. Bc4 {[%clk 0:02:58.2]} 7... O-O {[%clk 0:02:54.4]} 8. O-O
{[%clk 0:02:58.7]} 8... Ne5 {[%clk 0:02:28.1]} 9. Bb3 {[%clk 0:02:58.3]} 9... d6
{[%clk 0:02:28.6]} 10. h3 {[%clk 0:02:58]} 10... Qg6 {[%clk 0:02:23.2]} 11. Kh2
{[%clk 0:02:52.5]} 11... Qxe4 {[%clk 0:02:18.7]} 12. Nd2 {[%clk 0:02:46.4]}
12... Qg6 {[%clk 0:02:13.2]} 13. Bc2 {[%clk 0:02:38.9]} 13... Qf6 {[%clk
0:02:09.5]} 14. Ne4 {[%clk 0:02:35.9]} 14... Qh4 {[%clk 0:01:58.5]} 15. Bg5
{[%clk 0:02:27.2]} 15... Ng4+ {[%clk 0:01:36.7]} 16. Qxg4 {[%clk 0:02:25.4]}
16... Qxg4 {[%clk 0:01:24.6]} 17. hxg4 {[%clk 0:02:25.5]} 17... f6 {[%clk
0:01:21.9]} 18. Be3 {[%clk 0:02:19.7]} 18... Bxd4 {[%clk 0:01:21.5]} 19. cxd4
{[%clk 0:02:16.2]} 19... Bxg4 {[%clk 0:01:21.8]} 20. Bb3+ {[%clk 0:02:17.5]}
20... d5 {[%clk 0:01:20.3]} 21. Rac1 {[%clk 0:02:16.4]} 21... c6 {[%clk
0:01:19.7]} 22. Nc5 {[%clk 0:02:13.8]} 22... Rab8 {[%clk 0:01:19.1]} 23. Bf4
{[%clk 0:02:14.1]} 23... Rbe8 {[%clk 0:01:15.7]} 24. Nxb7 {[%clk 0:02:04.1]}
24... Ng6 {[%clk 0:01:16.6]} 25. Be3 {[%clk 0:01:59.2]} 25... f5 {[%clk
0:01:02]} 26. Rxc6 {[%clk 0:01:53.9]} 26... f4 {[%clk 0:01:03.3]} 27. Bd2 {[%clk
0:01:54.5]} 27... Rf5 {[%clk 0:00:57.6]} 28. Re1 {[%clk 0:01:47.7]} 28... Rh5+
{[%clk 0:00:52.4]} 29. Kg1 {[%clk 0:01:48.6]} 29... Rxe1+ {[%clk 0:00:52]} 30.
Bxe1 {[%clk 0:01:49.7]} 30... f3 {[%clk 0:00:51]} 31. Rd6 {[%clk 0:01:32.5]}
31... Nf4 {[%clk 0:00:49.1]} 32. Rd8+ {[%clk 0:01:16.2]} 32... Kf7 {[%clk
0:00:47.3]} 33. Bb4 {[%clk 0:00:54.1]} 33... Ne2+ {[%clk 0:00:39.1]} 0-1

[Event "*** Titled Tuesday 3|2 Blitz"]
[Site "Chess.com"]
[Date "2016.08.02"]
[Round "6"]
[White "Gabrielian_Artur"]
[Black "DeviatkinAndrey"]
[Result "0-1"]
[WhiteElo "2548"]
[BlackElo "2565"]
[TimeControl "180+2"]
[EndTime "12:20:19 PDT"]
[Termination "DeviatkinAndrey won by resignation"]

1. e4 {[%clk 0:03:01.9]} 1... c6 {[%clk 0:03:00.3]} 2. d4 {[%clk 0:03:02.3]}
2... d5 {[%clk 0:03:01.3]} 3. e5 {[%clk 0:03:03.6]} 3... Bf5 {[%clk 0:03:02.5]}
4. Nf3 {[%clk 0:03:04.8]} 4... e6 {[%clk 0:03:03.3]} 5. Be2 {[%clk 0:03:05.9]}
5... Ne7 {[%clk 0:03:03.5]} 6. O-O {[%clk 0:03:06]} 6... Nd7 {[%clk 0:03:04.7]}
7. Nbd2 {[%clk 0:03:06.5]} 7... a6 {[%clk 0:03:01.1]} 8. a4 {[%clk 0:03:04.7]}
8... c5 {[%clk 0:03:00.4]} 9. Nb3 {[%clk 0:02:39.7]} 9... Nc6 {[%clk 0:02:59.1]}
10. c3 {[%clk 0:02:32.6]} 10... Be7 {[%clk 0:02:51.6]} 11. Be3 {[%clk
0:02:28.7]} 11... cxd4 {[%clk 0:02:52.3]} 12. Nbxd4 {[%clk 0:02:21.5]} 12... Bg6
{[%clk 0:02:45.3]} 13. Bf4 {[%clk 0:01:51.9]} 13... O-O {[%clk 0:02:45.2]} 14.
Re1 {[%clk 0:01:52.8]} 14... Qb6 {[%clk 0:02:32.8]} 15. Qd2 {[%clk 0:01:52.3]}
15... Nc5 {[%clk 0:02:32.3]} 16. a5 {[%clk 0:01:43.7]} 16... Qc7 {[%clk
0:02:31]} 17. Nxc6 {[%clk 0:01:43]} 17... bxc6 {[%clk 0:02:29.9]} 18. Nd4 {[%clk
0:01:34.9]} 18... Ne4 {[%clk 0:02:28.9]} 19. Qe3 {[%clk 0:01:35.6]} 19... c5
{[%clk 0:02:30.4]} 20. Nf3 {[%clk 0:01:30.7]} 20... Rfb8 {[%clk 0:02:28.5]} 21.
Ra2 {[%clk 0:01:28.6]} 21... Rd8 {[%clk 0:02:03.7]} 22. Bf1 {[%clk 0:01:29]}
22... d4 {[%clk 0:02:00.6]} 23. cxd4 {[%clk 0:01:28]} 23... cxd4 {[%clk
0:02:01.9]} 24. Nxd4 {[%clk 0:01:07.4]} 24... Bc5 {[%clk 0:01:39.9]} 25. Rd1
{[%clk 0:01:07.4]} 25... Rd7 {[%clk 0:01:18.5]} 26. Ra4 {[%clk 0:00:58.3]} 26...
Rad8 {[%clk 0:01:19.1]} 27. f3 {[%clk 0:00:23]} 27... Qa7 {[%clk 0:01:19.2]} 28.
fxe4 {[%clk 0:00:23.6]} 28... Rxd4 {[%clk 0:01:05.6]} 29. Rdxd4 {[%clk
0:00:18.8]} 29... Rxd4 {[%clk 0:01:05.4]} 0-1

[Event "*** Titled Tuesday 3|2 Blitz"]
[Site "Chess.com"]
[Date "2016.08.02"]
[Round "6"]
[White "LaStreetCmaMaison"]
[Black "ShimanovAlex"]
[Result "1-0"]
[WhiteElo "2519"]
[BlackElo "2576"]
[TimeControl "180+2"]
[EndTime "12:20:40 PDT"]
[Termination "LaStreetCmaMaison won by resignation"]

1. Nf3 {[%clk 0:02:59.5]} 1... Nf6 {[%clk 0:02:57.1]} 2. g3 {[%clk 0:03:01.4]}
2... g6 {[%clk 0:02:57.9]} 3. b3 {[%clk 0:03:01.9]} 3... Bg7 {[%clk 0:02:58.9]}
4. Bb2 {[%clk 0:03:03.4]} 4... O-O {[%clk 0:03:00.4]} 5. Bg2 {[%clk 0:03:04.9]}
5... c5 {[%clk 0:03:01.5]} 6. c4 {[%clk 0:03:04.6]} 6... d6 {[%clk 0:03:00.9]}
7. O-O {[%clk 0:03:05]} 7... e5 {[%clk 0:02:59.7]} 8. d3 {[%clk 0:03:04.3]} 8...
Nc6 {[%clk 0:03:00]} 9. Nc3 {[%clk 0:03:05.4]} 9... Nh5 {[%clk 0:02:55.8]} 10.
e4 {[%clk 0:02:59]} 10... f5 {[%clk 0:02:55.8]} 11. exf5 {[%clk 0:02:59.8]}
11... Bxf5 {[%clk 0:02:54]} 12. Nh4 {[%clk 0:02:57.9]} 12... Bd7 {[%clk
0:02:52]} 13. Ne4 {[%clk 0:02:58.3]} 13... Qe7 {[%clk 0:02:51.3]} 14. Qe2 {[%clk
0:02:54.8]} 14... Rae8 {[%clk 0:02:33.6]} 15. Rae1 {[%clk 0:02:47.3]} 15... Kh8
{[%clk 0:02:31.5]} 16. Bf3 {[%clk 0:02:42.7]} 16... Nf4 {[%clk 0:02:15.4]} 17.
gxf4 {[%clk 0:02:35.9]} 17... Qxh4 {[%clk 0:02:16.1]} 18. Nxd6 {[%clk
0:02:36.6]} 18... Rxf4 {[%clk 0:01:53.5]} 19. Nxe8 {[%clk 0:02:28.3]} 19... Bxe8
{[%clk 0:01:55.4]} 20. Bg2 {[%clk 0:02:25]} 20... Bd7 {[%clk 0:01:53.5]} 21. Qe3
{[%clk 0:02:21.3]} 21... Rg4 {[%clk 0:01:49.7]} 22. Kh1 {[%clk 0:02:20.3]} 22...
Nd4 {[%clk 0:01:30.6]} 23. Bxd4 {[%clk 0:02:17.9]} 23... cxd4 {[%clk 0:01:30.8]}
24. Qh3 {[%clk 0:02:13.4]} 24... Qg5 {[%clk 0:01:24.8]} 25. f3 {[%clk
0:02:09.6]} 25... Rxg2 {[%clk 0:00:31.2]} 26. Qxg2 {[%clk 0:02:11.5]} 26... Qf4
{[%clk 0:00:31.1]} 27. Re4 {[%clk 0:02:11.5]} 27... Qf5 {[%clk 0:00:31.5]} 28.
Qg4 {[%clk 0:02:06.2]} 28... Qf7 {[%clk 0:00:31.7]} 29. Qg5 {[%clk 0:02:03.7]}
29... Bf6 {[%clk 0:00:31.1]} 30. Qg3 {[%clk 0:02:02.6]} 30... Qg7 {[%clk
0:00:20.2]} 31. Rfe1 {[%clk 0:01:39.6]} 31... Bc6 {[%clk 0:00:19.9]} 32. Rxe5
{[%clk 0:01:39.3]} 32... Bxe5 {[%clk 0:00:21.2]} 33. Qxe5 {[%clk 0:01:39.6]}
33... Bxf3+ {[%clk 0:00:22.2]} 34. Kg1 {[%clk 0:01:39.7]} 34... Qxe5 {[%clk
0:00:21.2]} 35. Rxe5 {[%clk 0:01:41.6]} 35... Kg7 {[%clk 0:00:21]} 36. Kf2
{[%clk 0:01:40.9]} 36... Bc6 {[%clk 0:00:21.3]} 37. b4 {[%clk 0:01:36.6]} 37...
Kf6 {[%clk 0:00:20.7]} 38. Rc5 {[%clk 0:01:38.2]} 38... a6 {[%clk 0:00:21.2]}
39. b5 {[%clk 0:01:37.8]} 39... axb5 {[%clk 0:00:22.5]} 40. cxb5 {[%clk
0:01:39.7]} 40... Bh1 {[%clk 0:00:24.4]} 41. a4 {[%clk 0:01:39.3]} 41... Ke6
{[%clk 0:00:25.4]} 42. a5 {[%clk 0:01:39.9]} 42... Kd6 {[%clk 0:00:26.4]} 43.
Rc4 {[%clk 0:01:41.4]} 43... Ke5 {[%clk 0:00:26.2]} 44. a6 {[%clk 0:01:41.7]}
44... bxa6 {[%clk 0:00:26.7]} 45. bxa6 {[%clk 0:01:43.6]} 45... Kd5 {[%clk
0:00:27.8]} 46. a7 {[%clk 0:01:44]} 1-0

[Event "*** Titled Tuesday 3|2 Blitz"]
[Site "Chess.com"]
[Date "2016.08.02"]
[Round "6"]
[White "usbista"]
[Black "Makalexa"]
[Result "0-1"]
[WhiteElo "2012"]
[BlackElo "2166"]
[TimeControl "180+2"]
[EndTime "12:20:49 PDT"]
[Termination "Makalexa won on time"]

1. e4 {[%clk 0:03:01.9]} 1... c5 {[%clk 0:02:57.6]} 2. Nf3 {[%clk 0:02:59]} 2...
d6 {[%clk 0:02:52.2]} 3. d4 {[%clk 0:02:59.5]} 3... cxd4 {[%clk 0:02:52.7]} 4.
Nxd4 {[%clk 0:03:01.4]} 4... Nf6 {[%clk 0:02:54]} 5. Nc3 {[%clk 0:03:02.2]} 5...
a6 {[%clk 0:02:54]} 6. Bc4 {[%clk 0:03:02.2]} 6... e6 {[%clk 0:02:50.1]} 7. Bb3
{[%clk 0:03:02.6]} 7... Be7 {[%clk 0:02:48.1]} 8. Qf3 {[%clk 0:03:03.1]} 8...
O-O {[%clk 0:02:43.7]} 9. Qg3 {[%clk 0:03:03.2]} 9... Nh5 {[%clk 0:02:32.1]} 10.
Qf3 {[%clk 0:03:03.6]} 10... Nf6 {[%clk 0:02:29.6]} 11. O-O {[%clk 0:03:03.9]}
11... Nc6 {[%clk 0:02:22]} 12. Nxc6 {[%clk 0:02:51.1]} 12... bxc6 {[%clk
0:02:22.2]} 13. e5 {[%clk 0:02:49.1]} 13... Nd5 {[%clk 0:02:20.3]} 14. exd6
{[%clk 0:02:41.9]} 14... Bxd6 {[%clk 0:02:18.5]} 15. Ne4 {[%clk 0:02:42.3]}
15... Be5 {[%clk 0:02:16.2]} 16. c4 {[%clk 0:02:39.2]} 16... Ne7 {[%clk
0:02:06.3]} 17. Rd1 {[%clk 0:02:28.2]} 17... Qc7 {[%clk 0:02:03.5]} 18. Bc2
{[%clk 0:02:03.8]} 18... Bb7 {[%clk 0:01:46.6]} 19. Ng5 {[%clk 0:01:45.8]} 19...
g6 {[%clk 0:01:36]} 20. Qh3 {[%clk 0:01:36.9]} 20... h5 {[%clk 0:01:35.8]} 21.
Be3 {[%clk 0:01:14.5]} 21... Nf5 {[%clk 0:01:32.7]} 22. Bxf5 {[%clk 0:00:59.3]}
22... exf5 {[%clk 0:01:31.5]} 23. Nf3 {[%clk 0:00:39.3]} 23... Bxb2 {[%clk
0:01:25.5]} 24. Rab1 {[%clk 0:00:39.4]} 24... Rad8 {[%clk 0:01:19.8]} 25. Nd4
{[%clk 0:00:17.3]} 25... Bxd4 {[%clk 0:01:06.9]} 26. Bxd4 {[%clk 0:00:18.6]}
26... c5 {[%clk 0:01:03.3]} 27. Ba1 {[%clk 0:00:18.6]} 27... Qc6 {[%clk
0:01:01.1]} 28. f3 {[%clk 0:00:18]} 28... Qa4 {[%clk 0:00:33]} 0-1